bitfinex/quotes_ETHUSD_20220731
["timestamp","ask_amount","ask_price","bid_price","bid_amount"]
[1659282881124,0.0396014,1711.4,1711.1,2.7249]
[1659282881527,0.0396014,1711.4,1711.0,14.6416]
[1659282881699,0.0396014,1711.4,1711.0,11.5]
[1659282882943,1.5003014,1711.4,1711.0,11.5]
[1659282883497,1.46085,1711.3,1711.0,11.5]
[1659282884444,0.0396014,1711.4,1711.0,11.79471435]
[1659282884649,7.72239999,1711.5,1711.0,4.94532107]
[1659282885198,7.72239999,1711.5,1711.1,0.11490476]
[1659282885501,7.72239999,1711.5,1711.1,1.86736476]
[1659282885997,7.72239999,1711.5,1711.1,0.40699476]
[1659282886805,7.72239999,1711.5,1711.1,1.86735476]
[1659282888018,7.72239999,1711.5,1711.1,2.07180616]
[1659282888912,7.72239999,1711.5,1711.1,0.40699476]
[1659282890363,9.18297999,1711.5,1711.1,0.11490476]
[1659282891519,7.6724,1711.5,1711.1,0.40700476]
[1659282891665,7.6724,1711.5,1711.1,0.70171911]
[1659282891864,7.6724,1711.5,1711.2,1.46028]
[1659282892067,7.6724,1711.5,1711.3,0.29205]
[1659282892772,7.6724,1711.5,1711.1,0.40961911]
[1659282893363,7.6724,1711.5,1711.1,0.70171911]
[1659282893777,9.12951534,1711.5,1711.1,0.70171911]
[1659282894385,9.42163924,1711.5,1711.1,0.40961911]
[1659282894909,9.16911674,1711.5,1711.1,0.40961911]
[1659282895734,9.46124584,1711.5,1711.1,0.40961911]
[1659282896024,9.46124584,1711.5,1711.0,3.19278872]
[1659282896025,1.46075,1711.4,1710.9,120.121257]
[1659282896226,0.3317661,1711.3,1710.9,120.121257]
[1659282896385,1.46088,1711.2,1711.0,0.002622]
[1659282896590,0.05,1711.5,1711.2,8.0]
[1659282896822,0.05,1711.5,1711.3,4.732]
[1659282896823,0.2921877,1711.5,1711.3,4.732]
[1659282896987,3.2753,1711.9,1711.3,1.3923986]
[1659282897203,0.05,1712.0,1711.4,0.29471435]
[1659282897397,7.6634,1712.1,1711.4,0.29471435]
[1659282897398,14.5082394,1712.1,1711.4,2.16177911]
[1659282897623,17.78019999,1712.1,1711.4,0.70163911]
[1659282897836,0.0396014,1711.6,1711.2,0.05]
[1659282898003,0.0396014,1711.6,1711.1,3.11639]
[1659282898183,0.2921064,1711.7,1711.1,3.11639]
[1659282898386,0.04999999,1711.6,1711.1,3.11639]
[1659282898609,1.80272099,1711.6,1711.1,3.11639]
[1659282898925,1.80272099,1711.6,1711.0,13.20724672]
[1659282899091,0.0396014,1711.5,1711.0,13.49936672]
[1659282899293,0.0396014,1711.5,1711.0,13.79408107]
[1659282899491,0.0396014,1711.5,1711.0,6.80778107]
[1659282899720,0.0396014,1711.5,1711.0,11.76830107]
[1659282899927,0.0396014,1711.5,1711.0,8.87025435]
[1659282900127,0.0396014,1711.5,1711.0,10.33077435]
[1659282900537,0.0396014,1711.5,1711.0,8.87025435]
[1659282900839,0.0396014,1711.5,1711.0,11.76830107]
[1659282901462,0.0396014,1711.5,1711.0,11.79527152]
[1659282901776,0.0396014,1711.5,1711.0,8.29527152]
[1659282901980,0.04999999,1711.6,1711.1,1.46044]
[1659282902137,1.51055999,1711.6,1711.0,9.27883152]
[1659282902337,1.51055999,1711.6,1711.1,0.29211]
[1659282902565,1.51055999,1711.6,1711.1,3.19015672]
[1659282902770,1.7526651,1711.7,1711.3,1.228]
[1659282903071,0.05,1711.9,1711.3,11.11653254]
[1659282903295,0.05,1712.0,1711.3,8.05483254]
[1659282903507,17.2551,1712.1,1711.4,2.0736885]
[1659282903697,3.1797,1712.1,1711.5,8.23004672]
[1659282903869,0.05,1712.2,1711.7,1.232]
[1659282904063,10.6603,1712.4,1711.8,3.18999672]
[1659282904064,10.7103,1712.4,1711.8,3.18999672]
[1659282904264,10.7103,1712.4,1711.8,4.97132892]
[1659282904265,7.5799,1712.4,1711.8,4.97132892]
[1659282904464,7.5799,1712.4,1711.9,0.4381]
[1659282904665,7.5799,1712.4,1711.9,0.29193]
[1659282906647,12.87704672,1712.3,1711.8,0.2946007]
[1659282906811,12.87704672,1712.3,1711.5,1.50998]
[1659282906812,3.3,1712.3,1711.5,1.50998]
[1659282907016,3.3,1712.3,1711.6,6.47786744]
[1659282907438,0.04999999,1712.2,1711.6,3.48476107]
[1659282907619,0.04999999,1712.2,1711.6,3.48738216]
[1659282908047,0.04999999,1712.2,1711.6,6.98738216]
[1659282908245,0.04999999,1712.2,1711.6,3.48738216]
[1659282908468,0.04999999,1712.2,1711.6,4.94464107]
[1659282908814,0.04999999,1712.2,1711.6,5.04759383]
[1659282910200,0.04999999,1712.2,1711.6,8.70799243]
[1659282910502,0.04999999,1712.2,1711.6,5.20799243]
[1659282910711,0.04999999,1712.2,1711.7,2.89804672]
[1659282910860,0.04999999,1712.2,1711.8,0.29197]
[1659282911063,0.04999999,1712.2,1711.8,0.288667]
[1659282911903,0.04999999,1712.2,1711.9,0.29195]
[1659282912269,0.04999999,1712.2,1711.9,0.73005]
[1659282912525,0.04999999,1712.2,1711.9,2.18971]
[1659282912907,0.04999999,1712.2,1711.9,0.29195]
[1659282913070,0.04999999,1712.2,1711.7,0.00200443]
[1659282913776,0.04999999,1712.2,1711.5,7.1808761]
[1659282913982,0.04999999,1712.2,1711.6,0.29201]
[1659282915013,0.04999999,1712.2,1711.6,3.48477107]
[1659282915162,0.04999999,1712.2,1711.6,4.94476107]
[1659282915364,0.04999999,1712.2,1711.6,6.60908107]
[1659282915811,0.04999999,1712.2,1711.7,1.45987]
[1659282916219,0.04999999,1712.2,1711.8,1.7518]
[1659282916428,0.04999999,1712.2,1711.8,3.21164]
[1659282916635,0.04999999,1712.2,1711.8,1.7518]
[1659282917610,3.54999999,1712.4,1711.8,3.21162]
[1659282917935,3.49999999,1712.4,1711.8,3.21162]
[1659282918607,3.49999999,1712.4,1711.8,3.41861638]
[1659282919019,4.95990999,1712.4,1711.9,0.29198]
[1659282919536,4.95990999,1712.4,1711.9,0.34507546]
[1659282920108,4.45991,1712.4,1711.9,0.34507546]
[1659282920267,3.952,1712.5,1711.9,0.34507546]
[1659282920432,7.45004672,1712.5,1711.9,3.26461546]
[1659282920630,1.45991,1712.4,1711.9,0.34507546]
[1659282921576,1.7518969,1712.4,1711.9,0.34507546]
[1659282921939,1.45991,1712.4,1711.9,0.34507546]
[1659282922631,1.7518979,1712.4,1711.9,0.34507546]
[1659282922846,1.45991,1712.4,1711.9,0.34507546]
[1659282924479,1.7518968,1712.4,1711.9,0.34507546]
[1659282924679,7.45004672,1712.5,1711.9,0.34507546]
[1659282924896,8.47183672,1712.5,1711.9,3.26465546]
[1659282925280,8.76380702,1712.5,1711.9,0.34507546]
[1659282926266,1.45993,1712.4,1711.9,0.34507546]
[1659282927513,1.7519125,1712.4,1711.9,0.34507546]
[1659282929689,5.2659474,1712.3,1711.9,0.05309546]
[1659282930009,6.70404412,1712.3,1711.9,0.05309546]
[1659282930608,1.46001,1712.2,1711.9,0.05309546]
[1659282930791,1.7520169,1712.2,1711.9,0.05309546]
[1659282933037,2.92003,1712.4,1711.9,0.05309546]
[1659282933199,0.2919895,1712.4,1711.9,0.34508546]
[1659282933401,6.43389,1712.5,1711.9,0.34508546]
[1659282933730,6.43389,1712.5,1711.9,1.80490546]
[1659282933731,8.76383172,1712.5,1711.9,1.80490546]
[1659282934883,8.76383172,1712.5,1711.9,3.26469546]
[1659282935167,2.05982,1712.5,1711.9,3.26469546]
[1659282935331,0.6,1712.5,1711.9,1.80490546]
[1659282935499,3.3,1712.5,1711.9,1.80490546]
[1659282936186,22.1306287,1712.6,1711.9,1.80490546]
[1659282936387,1.45978,1712.5,1711.9,2.00926176]
[1659282936620,0.02915614,1712.4,1712.0,0.29196]
[1659282936998,1.48902614,1712.4,1712.0,0.29196]
[1659282943619,1.48902614,1712.4,1712.2,1.222]
[1659282943620,0.02915614,1712.4,1712.2,1.222]
[1659282943921,0.02915614,1712.4,1712.3,3.33604672]
[1659282944148,0.02636065,1712.4,1712.3,3.33604672]
[1659282944358,0.05,1712.8,1712.4,0.2919]
[1659282944555,0.05,1713.0,1712.4,1.5139]
[1659282944713,0.4378,1713.0,1712.4,1.5139]
[1659282944914,3.7680725,1713.1,1712.4,2.97323]
[1659282945549,3.3,1713.0,1712.4,2.97326]
[1659282945714,3.0384,1713.1,1712.5,5.30394434]
[1659282945951,6.3748,1713.2,1712.7,1.222]
[1659282945952,5.937,1713.2,1712.7,1.222]
[1659282946153,5.887,1713.2,1712.7,1.222]
[1659282946352,5.887,1713.2,1712.7,5.1742186]
[1659282946595,5.887,1713.2,1712.7,2.01893294]
[1659282946817,2.9126,1713.2,1712.7,2.01893294]
[1659282948587,2.9126,1713.2,1712.8,1.45896]
[1659282948836,2.9126,1713.2,1712.9,0.2918]
[1659282949698,3.514,1713.0,1712.6,0.29185]
[1659282949916,3.514,1713.0,1712.3,0.488]
[1659282949917,0.2919251,1712.9,1712.3,0.488]
[1659282950083,12.86897182,1712.9,1712.2,5.922]
[1659282950308,12.86897182,1712.9,1712.2,6.21392]
[1659282950309,6.41204672,1712.8,1712.2,6.21392]
[1659282950507,7.87165672,1712.8,1712.2,6.21392]
[1659282950753,7.87165672,1712.8,1712.2,6.55863434]
[1659282952448,0.0396014,1712.7,1712.2,6.55863434]
[1659282952961,7.87165672,1712.8,1712.2,6.55863434]
[1659282953617,8.30955672,1712.8,1712.2,6.55863434]
[1659282954178,7.87165672,1712.8,1712.2,6.56125451]
[1659282954377,6.41204672,1712.8,1712.2,6.56125451]
[1659282954567,6.41204672,1712.8,1712.2,9.48016451]
[1659282954986,6.41204672,1712.8,1712.2,9.51553997]
[1659282955170,6.41204672,1712.8,1712.2,13.01553997]
[1659282955498,6.41204672,1712.8,1712.2,13.01816014]
[1659282956166,6.41204672,1712.8,1712.2,9.51816014]
[1659282956366,6.41204672,1712.8,1712.2,9.51553997]
[1659282956801,7.87162672,1712.8,1712.2,6.59662997]
[1659282957295,7.87162672,1712.8,1712.2,10.25702857]
[1659282957296,0.4379,1712.8,1712.2,10.25702857]
[1659282957597,3.9519,1712.8,1712.2,10.25702857]
[1659282957747,0.4379,1712.8,1712.2,10.25702857]
[1659282958349,3.9519,1712.8,1712.2,10.25702857]
[1659282958648,0.4379,1712.8,1712.2,11.71647857]
[1659282958870,0.4379,1712.8,1712.3,1.45938]
[1659282959104,0.4379,1712.8,1712.4,0.29187]
[1659282959250,0.7379,1712.9,1712.4,0.29187]
[1659282959450,0.7379,1712.9,1712.4,3.57680678]
[1659282959686,8.5734,1713.0,1712.4,2.11750678]
[1659282960953,8.5734,1713.0,1712.4,2.11951045]
[1659282961393,12.0734,1713.0,1712.4,2.11951045]
[1659282961630,8.8652864,1713.0,1712.4,2.11951045]
[1659282961812,8.8652864,1713.0,1712.4,2.11750678]
[1659282962220,8.5652864,1713.0,1712.4,2.11750678]
[1659282962530,8.5652864,1713.0,1712.4,2.11951045]
[1659282963081,8.5652864,1713.0,1712.4,2.11750678]
[1659282963530,1.45947,1712.9,1712.4,2.11951045]
[1659282963719,1.7513704,1712.9,1712.4,0.66015045]
[1659282963885,6.70394712,1712.9,1712.4,0.66015045]
[1659282964085,3.78508912,1712.9,1712.4,0.66015045]
[1659282964517,4.9736,1712.8,1712.4,0.36627678]
[1659282965393,4.9736,1712.8,1712.4,0.65817678]
[1659282967047,5.2655116,1712.8,1712.4,0.65817678]
[1659282968541,4.9736,1712.8,1712.4,0.65817678]
[1659282969162,4.89582306,1712.8,1712.4,0.65817678]
[1659282972894,11.60716746,1712.8,1712.2,5.922]
[1659282973097,12.67881952,1712.6,1712.0,0.4881]
[1659282973276,12.67881952,1712.6,1711.8,0.05]
[1659282973277,0.2920419,1712.3,1711.8,0.05]
[1659282973475,3.8060419,1712.3,1711.7,6.4415]
[1659282973722,6.70408862,1712.3,1711.7,6.4415]
[1659282973924,1.4997114,1712.2,1711.7,6.4415]
[1659282974124,1.4997114,1712.2,1711.7,3.68488802]
[1659282974484,1.7917304,1712.2,1711.7,3.68488802]
[1659282974721,0.0396014,1711.9,1711.7,0.4382]
[1659282974880,0.0396014,1711.9,1711.3,0.05]
[1659282974881,3.514,1711.7,1711.3,0.05]
[1659282975082,6.41204672,1711.6,1711.0,11.9883]
[1659282975387,3.5536014,1711.4,1710.9,117.324957]
[1659282975590,6.45164812,1711.4,1710.9,117.324957]
[1659282976196,8.3980155,1711.6,1710.9,117.324957]
[1659282976197,6.959,1711.6,1710.9,117.324957]
[1659282976398,9.80704672,1711.6,1710.9,117.324957]
[1659282976630,7.7932,1711.7,1711.0,5.01201434]
[1659282976821,7.7432,1711.7,1711.0,8.89053368]
[1659282977109,7.7432,1711.7,1711.0,5.60408434]
[1659282977547,14.15524672,1711.7,1711.2,0.72091827]
[1659282977753,17.11684901,1711.7,1711.2,0.72091827]
[1659282978059,0.0396014,1711.5,1711.2,0.72091827]
[1659282978408,15.19344672,1711.7,1711.2,0.72091827]
[1659282980398,14.75524672,1711.7,1711.2,0.72091827]
[1659282982149,14.75524672,1711.7,1711.2,3.72091827]
[1659282983725,14.75524672,1711.7,1711.3,0.34471434]
[1659282985193,7.7432,1711.7,1711.3,0.34471434]
[1659282985357,0.05,1711.9,1711.4,0.19461264]
[1659282985560,9.1651,1712.1,1711.5,0.34471434]
[1659282985785,9.1151,1712.1,1711.5,0.63670434]
[1659282985992,9.1151,1712.1,1711.6,0.03421006]
[1659282986202,9.1151,1712.1,1711.6,0.6708944]
[1659282986570,9.1151,1712.1,1711.6,0.3789244]
[1659282988801,0.0396014,1711.9,1711.4,0.4382]
[1659282988977,0.0396014,1711.9,1711.3,2.9615]
[1659282988978,2.93764812,1711.9,1711.3,2.9615]
[1659282990409,4.69020032,1711.9,1711.3,2.9615]
[1659282990594,3.22974032,1711.9,1711.3,3.30621434]
[1659282991379,1.46051,1711.8,1711.3,3.30621434]
[1659282992031,1.46051,1711.8,1711.3,0.34471434]
[1659282992393,3.22974032,1711.9,1711.3,0.63678434]
[1659282992394,2.93764812,1711.9,1711.3,0.63678434]
[1659282992587,3.19804672,1711.9,1711.4,0.03420024]
[1659282992987,0.02570292,1711.8,1711.4,4.82625024]
[1659282993421,0.02570292,1711.8,1711.4,6.28632024]
[1659282993997,0.02570292,1711.8,1711.4,9.18436696]
[1659282994202,0.02570292,1711.8,1711.4,4.82625024]
[1659282994395,0.02570292,1711.8,1711.4,5.42484884]
[1659282994730,0.02570292,1711.8,1711.4,5.76956318]
[1659282994950,0.02570292,1711.8,1711.4,5.33136318]
[1659282995241,0.02570292,1711.8,1711.4,11.1495999]
[1659282995397,0.02570292,1711.8,1711.5,0.4382]
[1659282995600,0.02570292,1711.8,1711.5,0.73022]
[1659282997249,10.62485633,1712.1,1711.5,0.73022]
[1659282997394,10.57485633,1712.1,1711.5,0.63673434]
[1659282998106,0.02570292,1711.8,1711.7,0.1603986]
[1659282998306,0.02570292,1711.8,1711.7,0.50511294]
[1659282998541,0.02570292,1711.8,1711.7,0.34471434]
[1659282998904,0.02570292,1711.8,1711.7,0.34891053]
[1659282999252,0.05,1712.2,1711.8,0.29193]
[1659282999450,3.55,1712.4,1711.8,0.29193]
[1659282999602,15.6341,1712.5,1711.8,0.29193]
[1659282999803,18.48214672,1712.5,1711.8,0.29193]
[1659283000033,3.5,1712.4,1711.8,0.29193]
[1659283000251,3.5,1712.4,1711.8,1.75161]
[1659283000804,3.5,1712.4,1711.8,1.75423078]
[1659283001814,3.5,1712.4,1711.8,1.75161]
[1659283002133,5.2518847,1712.4,1711.8,0.29193]
[1659283002608,1.46001,1712.3,1711.8,0.29193]
[1659283003968,1.7518947,1712.4,1711.8,0.29193]
[1659283004114,1.7914961,1712.4,1711.8,0.29193]
[1659283005760,5.2914961,1712.4,1711.8,0.29193]
[1659283006562,5.2518947,1712.4,1711.8,0.29193]
[1659283006790,1.7518947,1712.4,1711.8,0.29193]
[1659283007348,1.7518947,1712.4,1711.8,0.29393437]
[1659283008292,1.7518947,1712.4,1711.8,0.29193]
[1659283008293,5.2518947,1712.4,1711.8,0.29193]
[1659283008665,5.2914961,1712.4,1711.8,0.29393437]
[1659283009250,1.45995,1712.3,1711.8,0.29393437]
[1659283009457,1.45995,1712.3,1711.8,0.29193]
[1659283010092,19.26597662,1712.5,1711.9,0.36975533]
[1659283010290,19.21597662,1712.5,1712.0,0.29196]
[1659283010538,16.29595662,1712.5,1712.0,0.29196]
[1659283011402,1.45986,1712.4,1712.0,0.29196]
[1659283012538,12.78189662,1712.5,1712.0,0.29196]
[1659283012709,16.28189662,1712.5,1712.0,0.29196]
[1659283014010,1.45988,1712.4,1712.0,0.29196]
[1659283015467,1.7518628,1712.4,1712.0,0.29196]
[1659283015650,1.45996,1712.3,1711.9,0.66174533]
[1659283015849,0.0396014,1712.1,1711.9,0.66174533]
[1659283018998,1.7915608,1712.3,1711.9,0.66174533]
[1659283020824,1.7519594,1712.3,1711.9,0.66174533]
[1659283021030,1.45986,1712.4,1711.9,0.66174533]
[1659283023074,1.7518413,1712.4,1711.9,0.66174533]
[1659283025684,1.7518413,1712.4,1711.9,0.41174533]
[1659283026546,1.45993,1712.3,1711.9,0.41174533]
[1659283029162,1.7914327,1712.4,1711.9,0.41174533]
[1659283029714,5.2914327,1712.4,1711.9,0.41174533]
[1659283030326,1.7914327,1712.4,1711.9,0.41174533]
[1659283031109,1.45995,1712.3,1711.9,0.41174533]
[1659283032217,0.0396014,1712.1,1711.9,0.04199]
[1659283033606,4.22220369,1711.9,1711.8,1.4608]
[1659283033808,4.22220369,1711.9,1711.3,0.05]
[1659283033809,19.33864901,1711.9,1711.3,0.05]
[1659283034028,10.1176,1711.8,1711.1,0.05]
[1659283034237,0.05,1711.9,1711.8,1.227]
[1659283034397,3.2738,1712.3,1711.8,1.227]
[1659283034599,0.4384,1712.4,1711.8,1.227]
[1659283034600,8.6205,1712.5,1711.8,1.227]
[1659283034798,8.6205,1712.5,1711.8,1.57171434]
[1659283034799,0.02271083,1711.9,1711.8,1.57171434]
[1659283035006,0.02271083,1711.9,1711.8,0.34471434]
[1659283035647,0.02271083,1711.9,1711.6,9.1737]
[1659283035848,3.6036014,1712.2,1711.6,9.1737]
[1659283035999,6.45164812,1712.2,1711.6,2.8217]
[1659283037123,8.20379372,1712.2,1711.6,2.8217]
[1659283037650,1.46014,1712.1,1711.6,2.8217]
[1659283037940,1.7521707,1712.1,1711.6,2.8217]
[1659283038147,14.76771742,1712.1,1711.5,3.47541434]
[1659283038299,14.76771742,1712.1,1711.3,9.9782]
[1659283038300,4.42189229,1711.9,1711.3,9.9782]
[1659283038501,2.89804672,1711.8,1711.2,11.9387]
[1659283038695,6.41204672,1711.8,1711.1,3.5]
[1659283038895,6.45164812,1711.8,1711.2,0.35013605]
[1659283039134,6.45164812,1711.8,1711.2,1.07105432]
[1659283039816,0.29212,1711.7,1711.2,1.07105432]
[1659283040016,2.93764812,1711.8,1711.2,1.07105432]
[1659283040324,2.89804672,1711.8,1711.2,1.07105432]
[1659283040528,2.89804672,1711.8,1711.3,0.29205]
[1659283041153,1.46044,1711.7,1711.2,4.57105432]
[1659283041788,3.21422888,1711.8,1711.2,1.07105432]
[1659283041993,3.21422888,1711.8,1711.2,4.57105432]
[1659283042489,0.02409326,1711.8,1711.4,1.227]
[1659283042696,0.02409326,1711.8,1711.5,0.34471434]
[1659283045290,0.02409326,1711.8,1711.5,0.63673434]
[1659283045520,0.02409326,1711.8,1711.5,0.34471434]
[1659283045831,0.02409326,1711.8,1711.3,0.00262147]
[1659283045832,6.13524438,1711.8,1711.3,0.00262147]
[1659283046029,6.13524438,1711.8,1711.2,1.15961827]
[1659283046331,0.2921093,1711.7,1711.2,1.50433261]
[1659283046499,7.30375318,1711.8,1711.2,1.06563261]
[1659283046905,1.46051,1711.7,1711.2,1.06563261]
[1659283047116,0.2921141,1711.6,1711.2,1.06563261]
[1659283047485,1.46051,1711.7,1711.3,3.33674672]
[1659283047686,0.02409326,1711.8,1711.4,6.18372852]
[1659283047925,0.02409326,1711.8,1711.4,6.52844286]
[1659283048433,0.02409326,1711.8,1711.4,6.82048286]
[1659283048723,0.02409326,1711.8,1711.4,8.04748286]
[1659283048933,1.46039,1711.7,1711.4,0.40865009]
[1659283049113,0.31617286,1711.8,1711.4,0.40865009]
[1659283049494,1.48438326,1711.8,1711.4,0.40865009]
[1659283051737,1.46036,1711.7,1711.4,0.40865009]
[1659283052738,1.46036,1711.7,1711.3,0.29205]
[1659283054164,1.7524386,1711.7,1711.3,0.29205]
[1659283058240,0.2920878,1711.6,1711.2,0.3479115]
[1659283058441,10.65713998,1711.8,1711.2,0.3479115]
[1659283058648,0.0396014,1711.6,1711.2,0.3479115]
[1659283058842,0.2,1711.7,1711.6,0.00241271]
[1659283058843,8.11246,1711.7,1711.6,0.00241271]
[1659283059164,9.8730058,1711.7,1711.6,0.00241271]
[1659283059787,9.4344058,1711.7,1711.6,0.00241271]
[1659283062476,4.46058,1711.7,1711.6,0.00241271]
[1659283062677,17.28726392,1711.8,1711.6,0.00241271]
[1659283063131,17.58726392,1711.8,1711.6,0.00241271]
[1659283063383,17.31821951,1711.8,1711.6,0.00241271]
[1659283063588,18.47849951,1711.8,1711.6,0.00241271]
[1659283063738,14.12878101,1711.8,1711.6,0.00241271]
[1659283064553,5.46035,1711.7,1711.6,0.00241271]
[1659283066744,1.46035,1711.7,1711.6,0.00241271]
[1659283067094,13.53671951,1711.8,1711.6,0.00241271]
[1659283067507,7.39804672,1711.7,1711.6,0.00241271]
[1659283067663,4.0,1711.5,1711.1,0.05]
[1659283067863,4.0,1711.5,1711.4,0.00221941]
[1659283068065,7.2135881,1711.5,1711.4,0.00221941]
[1659283068281,4.2921381,1711.5,1711.4,0.00221941]
[1659283068472,0.2921381,1711.5,1711.4,0.00221941]
[1659283068669,4.6743081,1711.5,1711.4,0.00221941]
[1659283068915,4.6743081,1711.5,1711.0,3.92751]
[1659283068916,0.003045,1711.4,1711.0,3.92751]
[1659283069407,0.003045,1711.4,1711.1,0.00221973]
[1659283069592,0.2951672,1711.4,1711.1,0.00221973]
[1659283070288,0.2951672,1711.4,1711.0,3.92751]
[1659283070866,1.7557772,1711.4,1711.0,3.92751]
[1659283071093,1.7557772,1711.4,1711.0,0.73091]
[1659283072100,1.7557772,1711.4,1711.0,1.08389325]
[1659283072312,1.7557772,1711.4,1711.0,4.08389325]
[1659283072792,0.003045,1711.4,1711.0,4.08389325]
[1659283073786,0.003045,1711.4,1711.0,3.64509325]
[1659283073991,1.463635,1711.4,1711.0,3.64509325]
[1659283074792,0.003045,1711.4,1711.0,3.64509325]
[1659283075813,1.463645,1711.4,1711.0,3.64509325]
[1659283079205,1.463645,1711.4,1710.9,117.32696243]
[1659283079206,7.0536014,1711.2,1710.9,117.32696243]
[1659283079534,3.3,1711.0,1710.9,117.32696243]
[1659283079736,13.30427982,1711.0,1710.9,117.324957]
[1659283080048,13.34388122,1711.0,1710.9,117.324957]
[1659283080404,19.50888122,1711.0,1710.9,117.324957]
[1659283080726,23.44768122,1711.0,1710.9,87.79713039]
[1659283080932,23.44768122,1711.0,1710.9,14.78678506]
[1659283080933,23.64768122,1711.0,1710.9,14.78678506]
[1659283081105,23.64768122,1711.0,1710.4,0.05]
[1659283081307,23.64768122,1711.0,1709.9,0.4391]
[1659283081308,1.7537409,1710.7,1710.2,0.05]
[1659283081533,5.0537409,1710.7,1710.1,3.3015]
[1659283082127,5.0933423,1710.7,1710.1,3.3015]
[1659283082324,5.0933423,1710.7,1710.1,6.35994532]
[1659283082325,2.09845525,1710.7,1710.1,6.35994532]
[1659283082630,0.34471435,1710.7,1710.3,0.1603986]
[1659283083775,0.34471435,1710.7,1710.1,6.19954672]
[1659283084453,2.09832395,1710.7,1710.1,6.19954672]
[1659283086267,2.09832395,1710.7,1710.1,6.2021701]
[1659283086467,2.09832395,1710.7,1710.1,6.23826759]
[1659283087250,2.09832395,1710.7,1710.1,6.23564421]
[1659283087466,2.09832395,1710.7,1710.1,6.67464421]
[1659283087669,2.09832395,1710.7,1710.1,6.67726759]
[1659283088386,2.09832395,1710.7,1710.1,3.77922087]
[1659283088387,1.46129,1710.6,1710.1,3.77922087]
[1659283088545,0.2922745,1710.6,1710.1,3.77659749]
[1659283088931,1.46137,1710.5,1710.1,3.77659749]
[1659283089131,1.46137,1710.5,1710.1,0.47509749]
[1659283089909,1.46137,1710.5,1710.1,0.03609749]
[1659283090612,0.39471435,1710.7,1710.1,6.51396555]
[1659283090792,0.34471435,1710.7,1710.1,6.51396555]
[1659283090969,0.34471435,1710.7,1710.1,3.22636421]
[1659283091609,2.09813045,1710.7,1710.1,3.22636421]
[1659283091772,0.63695045,1710.7,1710.1,3.22636421]
[1659283092317,1.46127,1710.6,1710.1,3.22636421]
[1659283093518,1.7535279,1710.6,1710.2,0.1603986]
[1659283094002,1.7535279,1710.6,1710.1,3.22636421]
[1659283094366,1.7535279,1710.6,1710.1,3.22837057]
[1659283095208,1.7535279,1710.6,1710.1,3.22636421]
[1659283095922,1.7535573,1710.5,1710.1,2.93414421]
[1659283096087,0.2922673,1710.5,1710.1,2.93414421]
[1659283097598,1.7536389,1710.4,1710.1,0.03609749]
[1659283098216,1.7537407,1710.3,1710.1,0.03609749]
[1659283098518,3.2739,1710.6,1710.1,0.03609749]
[1659283098716,1.46132,1710.5,1710.1,0.03609749]
[1659283098871,4.38424,1710.5,1710.1,0.03609749]
[1659283099512,1.46138,1710.4,1710.1,0.03609749]
[1659283100619,4.68513,1710.6,1710.1,0.03609749]
[1659283101056,1.7534778,1710.6,1710.3,0.1603986]
[1659283101254,1.7534778,1710.6,1710.4,1.23495997]
[1659283101459,7.7231,1710.9,1710.5,0.1603986]
[1659283101460,0.05,1710.9,1710.5,0.1603986]
[1659283101752,5.9254,1711.1,1710.5,6.3458546]
[1659283101959,5.9254,1711.1,1710.6,0.00395951]
[1659283102111,5.92197316,1711.1,1710.6,0.00395951]
[1659283102543,5.92197316,1711.1,1710.6,0.16435811]
[1659283103957,0.05,1711.3,1710.9,1.3913986]
[1659283104133,0.003045,1711.4,1710.9,4.28944532]
[1659283104454,0.003045,1711.4,1711.0,2.93288523]
[1659283106394,0.003045,1711.4,1711.0,3.22497523]
[1659283108090,0.003045,1711.4,1711.0,0.03483851]
[1659283108892,1.463865,1711.4,1711.0,0.03483851]
[1659283109086,1.7560298,1711.4,1711.0,0.03483851]
[1659283111305,1.46082,1711.3,1710.8,11.5]
[1659283111507,4.82174,1711.3,1710.8,11.5]
[1659283111800,0.29223,1711.2,1710.8,11.5]
[1659283112003,1.46109,1711.1,1710.8,11.5]
[1659283112312,1.753309,1711.1,1710.8,11.5]
[1659283112599,1.7533094,1711.0,1710.8,11.5]
[1659283112773,2.92226,1711.2,1710.8,11.5]
[1659283113664,4.38323,1711.2,1710.8,11.5]
[1659283113901,0.2922086,1711.1,1710.8,11.5]
[1659283114972,1.46097,1711.2,1710.8,11.5]
[1659283119669,1.753152,1711.2,1710.8,11.5]
[1659283121122,1.46091,1711.1,1710.8,11.5]
[1659283121839,1.7531149,1711.1,1710.8,11.5]
[1659283122295,8.69193915,1711.3,1710.6,3.94090572]
[1659283122296,3.27821435,1711.3,1710.6,3.94090572]
[1659283122622,5.83154672,1711.3,1710.7,10.0]
[1659283122941,5.83154672,1711.3,1710.8,3.21324]
[1659283123092,2.89804672,1711.3,1710.8,3.21324]
[1659283123294,2.89804672,1711.3,1710.8,3.4177104]
[1659283123594,2.89563467,1711.3,1710.8,0.29213]
[1659283124845,4.35639467,1711.3,1710.8,0.29213]
[1659283125343,4.64854687,1711.3,1710.8,0.29213]
[1659283127132,4.64855547,1711.3,1710.8,0.29213]
[1659283129147,2.89563467,1711.3,1710.8,0.29213]
[1659283129673,1.7529368,1711.3,1710.8,3.19017672]
[1659283129836,1.7529368,1711.3,1710.9,0.00284959]
[1659283130038,1.46078,1711.3,1710.9,0.00284959]
[1659283130355,1.7529392,1711.3,1710.9,0.00284959]
[1659283130553,1.46078,1711.3,1710.9,0.29497959]
[1659283131121,3.22555935,1711.4,1710.9,0.29497959]
[1659283131838,3.51769285,1711.4,1710.9,0.29497959]
[1659283132476,0.2921568,1711.3,1710.9,0.00284959]
[1659283132839,3.22555935,1711.4,1710.9,0.00284959]
[1659283133039,1.46078,1711.3,1710.9,0.00284959]
[1659283134591,1.46078,1711.3,1710.9,0.29497959]
[1659283135184,1.7529207,1711.3,1710.9,0.29497959]
[1659283143792,0.02515952,1711.2,1710.9,0.29497959]
[1659283148025,0.02515952,1711.2,1710.9,4.03377959]
[1659283148226,0.02515952,1711.2,1710.9,0.59497959]
[1659283148391,0.02515952,1711.2,1710.9,0.29497959]
[1659283148591,0.02515952,1711.2,1710.9,0.59497959]
[1659283149008,0.02515952,1711.2,1710.9,0.29497959]
[1659283149232,0.02515952,1711.2,1710.9,0.59497959]
[1659283150952,0.02515952,1711.2,1710.9,0.29497959]
[1659283151117,0.02515952,1711.2,1710.9,0.59497959]